Cogmind - Beta 14 *** ADVENTURER MODE // 2024.08.20 @ 23:19:52 Player: shisihs Result: Core destroyed Performance ------------- Evolutions (1) 500 Regions Visited (2) 400 Robots Destroyed (8) 40 Value Destroyed (164) 164 Prototype IDs (0) 0 Alien Tech Used (0) 0 Bonus (0) 0 TOTAL SCORE: 1104 Bonus ------- None Cogmind --------- Core Integrity 0/400 Matter 270/300 Energy 100/100 System Corruption 0% Temperature Cool (0) Movement Core (50) Location -9/Materials Parts ------- > --- POWER (1) -------- (None) > --- PROPULSION (3) --- (None) > --- UTILITY (3) ------ (None) > --- WEAPON (2) ------- (None) > --- INVENTORY (5) ---- Improved Ion Engine Peak State ------------ > --- POWER ------------ Light Ion Engine > --- PROPULSION ------- Flight Unit Flight Unit > --- UTILITY ---------- Medium Storage Unit Terrain Scanner Improved Targeting Computer > --- WEAPON ----------- Light EM Pulse Cannon Assault Rifle > --- INVENTORY -------- Light Ion Engine Light Ion Engine Flight Unit Small Storage Unit Medium Storage Unit Medium Storage Unit High-capacity Storage Unit [Rating: 10] Favorites ----------- Power Light Ion Engine Engine Light Ion Engine Propulsion Flight Unit Leg Aluminum Leg Flight Unit Flight Unit Utility Small Storage Unit Device Terrain Scanner Storage Small Storage Unit Processor Improved Targeting Computer Weapon Assault Rifle Energy Cannon Light EM Pulse Cannon Ballistic Gun Assault Rifle Build | -11 -10 -9 ------- Run | Yrd Mat Mat Slots Evolved 2 | . . 2 Power . | . . . Propulsion 1 | . . 1 Utility 1 | . . 1 Weapon . | . . . Parts Attached 26 | 6 12 8 Power 4 | 1 2 1 Engine 4 | 1 2 1 Core . | . . . Reactor . | . . . Propulsion 9 | 2 5 2 Treads . | . . . Leg 5 | 2 3 . Wheel . | . . . Hover . | . . . Flight 4 | . 2 2 Utility 8 | 1 3 4 Device 1 | . 1 . Storage 6 | 1 2 3 Processor 1 | . . 1 Hackware . | . . . Protection . | . . . Artifact . | . . . Weapon 5 | 2 2 1 Energy Gun . | . . . Energy Cannon 1 | . . 1 Ballistic Gun 4 | 2 2 . Ballistic Cannon . | . . . Launcher . | . . . Special Weapon . | . . . Impact Weapon . | . . . Slashing Weapon . | . . . Piercing Weapon . | . . . Special Melee Weapon . | . . . Unidentified Prototypes . | . . . Parts Lost 10 | . 2 8 Power 3 | . 1 2 Propulsion 4 | . . 4 Utility . | . . . Weapon 3 | . 1 2 Highest Loss Streak 7 | . 2 7 To Critical Strikes . | . . . Average Slot Usage (%) 73 | . 86 50 Engine 11 | . 13 7 Leg 4 | . 6 . Flight 14 | . 17 11 Device 8 | . 8 9 Storage 16 | . 19 12 Processor 2 | . . 6 Ballistic Gun 13 | . 20 3 Peak Build Rating 10 | 6 7 10 Average Rating 5 | 4 6 5 On Entrance 4 | . 6 6 Naked Turns 38 | . . 38 Heaviest Build 21 | 11 16 21 Greatest Support 20 | 20 20 12 Greatest Overweight (x) 5 | 2 5 4 Average Overweight (x) . | . . 1 Largest Inventory Capacity 10 | 8 10 10 Average Capacity 8 | 7 8 9 Most Carried 8 | 8 8 8 Average Carried 5 | 6 6 5 Final Capacity 10 | 8 10 5 Final Carried 8 | 7 8 1 Class Distribution -------------------- 100% | Mutant Dominant Class ---------------- Mutant | -10/Materials Mutant | -9/Materials Resources | -11 -10 -9 ----------- Run | Yrd Mat Mat Matter Collected 474 | 280 194 . Remotely . | . . . Salvage Created 269 | 72 179 18 Parts 16 | 5 10 1 Haulers Intercepted . | . . . Recyclers Shooed . | . . . Parts Field Recycled . | . . . Retrieved Matter . | . . . Parts Self-Destructed . | . . . Prevented . | . . . Kills | -11 -10 -9 ------- Run | Yrd Mat Mat Combat Hostiles Destroyed 5 | . 5 . Guns 5 | . 5 . Classes Destroyed 5 | 2 2 1 Tunneler 1 | 1 . . Recycler 1 | 1 . . Watcher 1 | . . 1 Swarmer 2 | . 2 . Grunt 3 | . 3 . Best Kill Streak 2 | 2 2 1 Combat Bots Only 2 | . 2 . Max Kills in Single Turn 1 | 1 1 1 Gunslinging . | . . . Exploded . | . . . Melee . | . . . Uniques/NPCs Destroyed . | . . . Combat | -11 -10 -9 -------- Run | Yrd Mat Mat Hostile Shots Fired 140 | . 42 98 Missed 46 | . 10 36 Damage Taken 1151 | . 439 712 Core 594 | . 193 401 Absorbed by Shields . | . . . Ignored by Resistances 327 | . 125 202 Core Remaining (%) 61 | 100 22 . Volleys Fired 35 | 6 24 5 Largest 2 | 2 2 2 Hottest 76 | 40 40 76 Shots Fired 50 | 12 32 6 Gun 45 | 12 32 1 Cannon 5 | . . 5 Launcher . | . . . Special . | . . . Kinetic 45 | 12 32 1 Thermal . | . . . Explosive . | . . . Electromagnetic 5 | . . 5 Robot Hit Streak 17 | 6 11 17 Robot Miss Streak 2 | 1 2 . Penetration Max . | . . . Secondary Targets . | . . . Shots Hit Robots 43 | 11 26 6 Core Hits 17 | 3 11 3 Critical Kills . | . . . Critical Parts Destroyed . | . . . Critical Strikes . | . . . Melee Attacks . | . . . Impact . | . . . Slashing . | . . . Piercing . | . . . Sneak Attacks . | . . . Combat Hostiles . | . . . Follow-up Attacks . | . . . Damage Inflicted 581 | 114 313 154 Guns 439 | 114 313 12 Cannons 130 | . . 130 Explosions . | . . . Melee . | . . . Ramming 12 | . . 12 Kinetic 439 | 114 313 12 Thermal . | . . . Explosive . | . . . Electromagnetic 130 | . . 130 Impact . | . . . Slashing . | . . . Piercing . | . . . Highest Corruption . | . . . Average Corruption . | . . . Corruption Purged . | . . . Corruption Blocked . | . . . Overload Shots . | . . . Overflow Damage 6 | . . 6 Projectiles 6 | . . 6 Explosions . | . . . Melee . | . . . Knockbacks . | . . . Impact . | . . . Kinetic . | . . . Secondary . | . . . Self-Inflicted Damage 5 | . . 5 Shots . | . . . Rammed 5 | . . 5 Targets Rammed 5 | . . 5 Kicked . | . . . Crushed . | . . . Highest Temperature 76 | . 10 76 Average Temperature 14 | . 3 27 Received Heat Transfer 507 | . 111 396 Siege Activations . | . . . Robots Corrupted . | . . . Combat Hostiles . | . . . Parts Fried 1 | . . 1 Impact Corruptions . | . . . Robots Melted . | . . . Combat Hostiles . | . . . Parts Melted . | . . . Heat Transferred . | . . . Parts Sabotaged . | . . . Parts Stolen . | . . . Parts Stripped . | . . . Power Chain Reactions . | . . . Alert | -11 -10 -9 ------- Run | Yrd Mat Mat Peak Influence 195 | 10 195 30 Initial 5 | . 5 . Average 39 | 4 66 9 Maximum Alert Level . | . . . Low Security (%) 100 | 100 100 100 Level 1 . | . . . Level 2 . | . . . Level 3 . | . . . Level 4 . | . . . Level 5 . | . . . High Security . | . . . Max Security . | . . . Squads Dispatched . | . . . Investigation . | . . . Extermination . | . . . Reinforcement . | . . . Assault . | . . . Garrison . | . . . Intercept . | . . . Searches Triggered . | . . . Construction Impeded . | . . . Haulers Reinforced . | . . . Active Scanning Responses . | . . . Cargo Convoy Interrupts . | . . . Stealth | -11 -10 -9 --------- Run | Yrd Mat Mat Distress Signals 1 | . 1 . Communications Jammed . | . . . Distress Signals . | . . . Times Spotted 23 | . 13 10 Peak Tracking Total 8 | . 5 8 Tactical Retreats 3 | . 2 1 Traps | -11 -10 -9 ------- Run | Yrd Mat Mat Traps Triggered 6 | . 6 . Indirectly . | . . . Trap Hack Attempts . | . . . Triggered . | . . . Disarmed . | . . . Reprogrammed . | . . . Reused . | . . . Traps Extracted . | . . . Installed . | . . . Triggered . | . . . Machines | -11 -10 -9 ---------- Run | Yrd Mat Mat Machines Disabled . | . . . Max in Single Turn . | . . . Machines Repaired . | . . . Machines Dismantled . | . . . Machines Sabotaged . | . . . Overloaded Fab Kills . | . . . Hacking | -11 -10 -9 --------- Run | Yrd Mat Mat Machines Accessed 1 | . 1 . Terminals 1 | . 1 . Fabricators . | . . . Repair Stations . | . . . Recycling Units . | . . . Scanalyzers . | . . . Garrison Access . | . . . Total Hacks 1 | . 1 . Successful . | . . . Failed 1 | . 1 . Catastrophic . | . . . Database Lockouts . | . . . Manual . | . . . Terminals 1 | . 1 . Fabricators . | . . . Repair Stations . | . . . Recycling Units . | . . . Scanalyzers . | . . . Garrison Access . | . . . Terminal Hacks . | . . . Fabricator Hacks . | . . . Repair Station Hacks . | . . . Recycling Unit Hacks . | . . . Scanalyzer . | . . . Garrison Access Hacks . | . . . Unauthorized Hacks . | . . . Terminals . | . . . Fabricators . | . . . Repair Stations . | . . . Recycling Units . | . . . Scanalyzers . | . . . Garrison Access . | . . . Data Cores Recovered . | . . . Used . | . . . Hacking Detections . | . . . Full Trace Events . | . . . Feedback Events . | . . . Feedback Blocked . | . . . Robot Schematics Acquired . | . . . Robots Built . | . . . Authchips . | . . . Time . | . . . Total Robot Build Rating . | . . . Part Schematics Acquired . | . . . Parts Built . | . . . Authchips . | . . . Time . | . . . Total Part Build Rating . | . . . Parts Repaired . | . . . Time . | . . . Parts Recycled . | . . . Recycled Matter . | . . . Retrieved Matter . | . . . Retrieved Components . | . . . Parts Scanalyzed . | . . . Part Schematics Acquired . | . . . Parts Damaged . | . . . Bothacking | -11 -10 -9 ------------ Run | Yrd Mat Mat Used RIF Installer . | . . . Robots Hacked . | . . . Non-combat . | . . . Combat . | . . . Robot Hacks Applied . | . . . Relay Couplers Released . | . . . Fabnet Peak Effective % . | . . . Robots Rewired . | . . . Allies Hacked . | . . . Hacks Repelled . | . . . Allies | -11 -10 -9 -------- Run | Yrd Mat Mat Total Allies . | . . . Largest Group . | . . . Highest-Rated Group . | . . . Highest-Rated Ally . | . . . Total Orders . | . . . Ally Attacks . | . . . Total Damage . | . . . Kills . | . . . Allies Corrupted . | . . . Allies Melted . | . . . Intel | -11 -10 -9 ------- Run | Yrd Mat Mat Robot Analysis Total . | . . . Derelict Logs Recovered . | . . . Drone Launches . | . . . Drone Recoveries . | . . . Exploration | -11 -10 -9 ------------- Run | Yrd Mat Mat Turns Passed 770 | 112 411 247 Spaces Moved 479 | 68 243 168 Core 147 | 23 12 112 Treads . | . . . Legs 129 | 45 84 . Wheels . | . . . Hover . | . . . Flight 203 | . 147 56 Fastest Speed 50 | 50 117 50 Average Speed 123 | 114 126 122 Slowest Speed 360 | 150 300 360 Overloaded Moves . | . . . Propulsion Burnouts . | . . . Robots Hopped . | . . . Cave-ins Triggered . | . . . Exploration Rate (%) 22 | 4 47 17 Regions Visited 2 Branch Regions . Pre-discovered Areas . | . . . Known Exits Taken . | . . . Unknown Exits Taken 2 | 1 1 . Scrap Searched . | . . . Spaces Dug . | . . . Terrain Destroyed . | . . . Melee . | . . . Projectile . | . . . AOE . | . . . Terrain Rammed . | . . . Walls Destroyed . | . . . Machines Disabled . | . . . Actions | -11 -10 -9 --------- Run | Yrd Mat Mat Total 601 | 89 315 197 Wait 20 | . 20 . Move 477 | 67 242 168 Hop . | . . . Pick Up 25 | 10 11 4 Fast Attach 9 | 3 6 . Attach 12 | 3 4 5 Detach . | . . . Swap 5 | . 2 3 Drop 14 | . 6 8 Fire 35 | 6 24 5 Melee . | . . . Ram 4 | . . 4 Kick . | . . . Crush . | . . . Escape Stasis . | . . . Rewire . | . . . Trap . | . . . Miscellaneous . | . . . Route ------- -11/Scrapyard -10/Materials -9/Materials History --------- Turn | Location | Event 6 | -11/Scrapyard | Discovered new exit (range 15) 113 | -11/Scrapyard | Entered Materials 313 | -10/Materials | Build established: Mutant 338 | -10/Materials | Core integrity fell below 50% 477 | -10/Materials | Discovered new exit (range 16) 524 | -10/Materials | Entered another Materials area 524 | -9/Materials | Evolved 2 slots: Propulsion x1, Utility x1 652 | -9/Materials | Lost 7 parts (1p4n2w) 698 | -9/Materials | Core integrity fell below 50% 734 | -9/Materials | Core integrity fell below 20% 771 | -9/Materials | Core destroyed Last Messages --------------- 00707_ Destabilizing: System interference. 00707_ Terrain Scanner temporarily disabled. 00707_ Imp. Targeting Computer temporarily disabled. 00732_ Dropped Med. Storage Unit. 00732_ Dropped Terrain Scanner. 00733_ Lgt. Ion Engine destroyed. 00733_ Critical hit (Burn: +37). 00733_ Discarded Imp. Targeting Computer. 00733_ Dropped Sml. Storage Unit. 00734_ Dropped Med. Storage Unit. 00734_ Dropped Hover Unit. 00735_ Dropped Hcp. Storage Unit. 00735_ Dropped Med. Storage Unit. 00743_ Critical hit (Burn: +37). 00753_ Acquired Imp. Ion Engine. 00757_ Y-45 Defender misfires. 00757_ Y-45 Defender destroyed. 00763_ K-01 Serf collects debris. 00771_ Slammed into K-01 Serf. Map ----- +----------------------------------------------------+ | | | | | | | | | | | ?????????????????????????????##################### | | ???????????????#?????????#??# !# # | | ????????????????????????????# # """ """ # | | ?????????##############?????#""" # """ """ # | | ?????????# """ # #???#?#""" # """ """ "" # | | ?????????# """ # #######""" # S"" # | | ?????????# """ + #??? [# "" # | | ?????????# # ### #??###+#########+####### | | ?????????# # ### ##?# #????# #?#### | | ?????????# ### #### ### ###### #?# | | ?????????########?# ##?# #?# | | ???????#?????#??#?# #?## ### ! ###### #?# # | | ?????????????######+##### #### #????# =!#?# # | | ?????????#???# # # #??###+######## *%#?# # | | ?????????????# # # #????# # [!#?# # | | ?????????????# # """ # #????# # ### # | | ?????????????# + """ # ###### # ## | | ?????? # """ # + # | | ?? # # ###### + ## | | ??? ######## #????# % # ## | | ??? ####### k@#????# # ###+## | | ?????????????# ##########????# # #???? | | ?????????????# #?????????????# # # ?? ? | | ?????????????# #????##???????########## # ? ?? | | ????????????? #??????????????????????# #?? ?" | | ????????????? #??????????????????#??## #???"" | | ????????????? #????????????????????#?# #???"? | | ????????????#####???#?????????????????#?# #?? ?? | | ????????????????????????????????? ??????# #????? | | ??????????????????????????????????????"?# #????? | | ????????????????????????????????????????# #?#??? | | ????????????????????????????????????????# #????? | | ????????????????????????????????????????+ #????? | | ????????????????????????????????????????? ?????? | | ?????????????????????????????????????????????????? | | ?????????????????????????????????????????????????? | | ?????????????????????????????????????????????????? | | ?????????????????????????????????????????????????? | | ?????????????????????????????????????????????????? | | ?????????????????????????????????????????????????? | | ?????????????????????????????????????????????????? | | ?????????????????????????????????????????????????? | | ?????????????????????????????????????????????????? | | ?????????????????????????????????????????????????? | | ?????????????????????????????????????????????????? | +----------------------------------------------------+ Best States ------------- Heat Dissipation 28 Energy Generation 10 Energy Capacity 125 Matter Stores 300 Matter Capacity 300 Sight Range 16 Terrain Scan Range 14 Terrain Scan Density 10 Resistance: KI 20 Resistance: TH 20 Resistance: EX 20 Resistance: EM 20 Resistance: I 20 Resistance: S 20 Resistance: P 20 Evasion (%) 55 Targeting Accuracy 6 Offensive Hacking 10 Item Schematics ----------------- None Robot Schematics ------------------ None Fabricated ------------ Nothing Alien Tech Used ----------------- None Achievements -------------- None Challenges ------------ None Game ------ Seed CorruptionSiegeDeflector Manual? 0 Play Time 00:11:41 Cumulative 26.3 hours Start 2024.08.20 @ 23:06:42 End 2024.08.20 @ 23:19:52 Sessions 1 Manual Loads 0 Difficulty Adventurer Special Mode None Game No. 52 Rogue 19 Adventurer 33 Explorer 0 Win Type - Total 0 Types 0/0/0/0/0/0/0/0/0 Lore% 8 Gallery% 26 Achievement% 22 Wizard Run 0 Options --------- Layout 1 ASCII 0 Keyboard 0 Movement Mouse Keybinds 0 Fullscreen 1 Font 24/Smallcaps Map View 50x35 Zoom Use 0% Tactical HUD 1 Map Filters NONE Filters NONE Steam 1 RUN: 7dbeed6b-b0c0-4d2f-8ed7-3dc54879a5ba